[Event "Titled Tuesday Blitz January 10 Late 2023"]
[White "Kourkoulos-Arditis, Stamatis"]
[Black "Abdulla, Murad"]
[WhiteFideId "4221990"]
[BlackFideId "2403757"]
[WhiteElo "2539"]
[BlackElo "2307"]
[Result "1-0"]
[Round "03"]
[TimeControl "180+2"]
[Date "2023.01.10"]
[WhiteClock "0:01:23"]
[BlackClock "0:00:14"]

1. b3 {[%clk 0:00:00]}  e5 {[%clk 0:00:00]} 2. Bb2 {[%clk 0:02:54]}  Nc6 {[%clk 0:02:59]} 3. e3 {[%clk 0:02:55]}  Nf6 {[%clk 0:03:00]} 4. Bb5 {[%clk 0:02:56]}  Bd6 {[%clk 0:02:58]} 5. Na3 {[%clk 0:02:56]}  Na5 {[%clk 0:02:58]} 6. Be2 {[%clk 0:02:56]}  O-O {[%clk 0:02:59]} 7. Nb5 {[%clk 0:02:57]}  Qe7 {[%clk 0:02:55]} 8. Nxd6 {[%clk 0:02:54]}  Qxd6 {[%clk 0:02:48]} 9. Nf3 {[%clk 0:02:53]}  Nc6 {[%clk 0:02:45]} 10. O-O {[%clk 0:02:51]}  b6 {[%clk 0:02:43]} 11. d4 {[%clk 0:02:49]}  e4 {[%clk 0:02:43]} 12. Ne5 {[%clk 0:02:38]}  Bb7 {[%clk 0:02:43]} 13. c4 {[%clk 0:02:39]}  Qe7 {[%clk 0:02:41]} 14. Rc1 {[%clk 0:02:39]}  d6 {[%clk 0:02:36]} 15. Nxc6 {[%clk 0:02:09]}  Bxc6 {[%clk 0:02:35]} 16. d5 {[%clk 0:02:09]}  Bb7 {[%clk 0:02:35]} 17. Qd4 {[%clk 0:02:09]}  a5 {[%clk 0:02:35]} 18. f4 {[%clk 0:02:08]}  exf3 {[%clk 0:02:24]} 19. gxf3 {[%clk 0:02:07]}  Ne8 {[%clk 0:01:15]} 20. e4 {[%clk 0:02:08]}  f6 {[%clk 0:01:12]} 21. Kh1 {[%clk 0:02:03]}  a4 {[%clk 0:01:11]} 22. b4 {[%clk 0:02:03]}  a3 {[%clk 0:01:10]} 23. Bc3 {[%clk 0:02:03]}  Qe5 {[%clk 0:01:10]} 24. Qe3 {[%clk 0:02:03]}  Qh5 {[%clk 0:01:04]} 25. Rg1 {[%clk 0:02:01]}  Kh8 {[%clk 0:01:01]} 26. Rg3 {[%clk 0:02:02]}  Qh6 {[%clk 0:00:56]} 27. f4 {[%clk 0:02:01]}  Bc8 {[%clk 0:00:50]} 28. Rcg1 {[%clk 0:01:57]}  Rf7 {[%clk 0:00:46]} 29. Qf2 {[%clk 0:01:56]}  Re7 {[%clk 0:00:40]} 30. Bd3 {[%clk 0:01:41]}  g6 {[%clk 0:00:36]} 31. f5 {[%clk 0:01:42]}  Rg7 {[%clk 0:00:29]} 32. fxg6 {[%clk 0:01:31]}  Rxg6 {[%clk 0:00:26]} 33. e5 {[%clk 0:01:29]}  Rxg3 {[%clk 0:00:27]} 34. Qxg3 {[%clk 0:01:24]}  Qg7 {[%clk 0:00:23]} 35. exf6 {[%clk 0:01:25]}  Qf7 {[%clk 0:00:18]} 36. Qg8+ {[%clk 0:01:24]}  Qxg8 {[%clk 0:00:13]} 37. f7+ {[%clk 0:01:23]}  Nf6 {[%clk 0:00:14]} 1-0


[Site "https://www.chess.com"]

[Event "Titled Tuesday Blitz January 10 Late 2023"]
[White "Adury, Anant"]
[Black "Sebag, Marie"]
[WhiteFideId "30964687"]
[BlackFideId "617822"]
[WhiteElo "2123"]
[BlackElo "2430"]
[Result "1-0"]
[Round "03"]
[TimeControl "180+2"]
[Date "2023.01.10"]
[WhiteClock "0:00:46"]
[BlackClock "0:00:06"]

1. Nf3 {[%clk 0:00:00]}  Nf6 {[%clk 0:00:00]} 2. c4 {[%clk 0:03:00]}  e6 {[%clk 0:02:26]} 3. Nc3 {[%clk 0:02:59]}  d5 {[%clk 0:02:26]} 4. e3 {[%clk 0:02:59]}  c5 {[%clk 0:02:25]} 5. cxd5 {[%clk 0:02:59]}  exd5 {[%clk 0:02:24]} 6. d4 {[%clk 0:02:59]}  Nc6 {[%clk 0:02:24]} 7. Bb5 {[%clk 0:02:59]}  Be7 {[%clk 0:02:24]} 8. O-O {[%clk 0:03:00]}  O-O {[%clk 0:02:24]} 9. b3 {[%clk 0:02:59]}  Bg4 {[%clk 0:02:24]} 10. Be2 {[%clk 0:02:58]}  Bxf3 {[%clk 0:02:23]} 11. Bxf3 {[%clk 0:02:53]}  cxd4 {[%clk 0:02:12]} 12. exd4 {[%clk 0:02:52]}  Rc8 {[%clk 0:02:12]} 13. Bg5 {[%clk 0:02:53]}  Nb4 {[%clk 0:02:10]} 14. Rc1 {[%clk 0:02:50]}  h6 {[%clk 0:02:04]} 15. Bxf6 {[%clk 0:02:36]}  Bxf6 {[%clk 0:01:57]} 16. a3 {[%clk 0:02:36]}  Nc6 {[%clk 0:01:57]} 17. Nxd5 {[%clk 0:02:35]}  Bxd4 {[%clk 0:01:42]} 18. b4 {[%clk 0:02:35]}  a6 {[%clk 0:01:41]} 19. a4 {[%clk 0:02:29]}  Bb2 {[%clk 0:01:39]} 20. Rb1 {[%clk 0:02:05]}  Be5 {[%clk 0:00:29]} 21. b5 {[%clk 0:02:01]}  axb5 {[%clk 0:00:28]} 22. axb5 {[%clk 0:02:00]}  Nd4 {[%clk 0:00:28]} 23. Ne3 {[%clk 0:02:01]}  Qh4 {[%clk 0:00:28]} 24. g3 {[%clk 0:02:01]}  Nxf3+ {[%clk 0:00:23]} 25. Qxf3 {[%clk 0:01:59]}  Qe7 {[%clk 0:00:22]} 26. Rfe1 {[%clk 0:02:00]}  Bc3 {[%clk 0:00:22]} 27. Nd5 {[%clk 0:01:50]}  Qc5 {[%clk 0:00:21]} 28. Ne7+ {[%clk 0:01:46]}  Kh8 {[%clk 0:00:18]} 29. Nxc8 {[%clk 0:01:37]}  Bxe1 {[%clk 0:00:16]} 30. Rxe1 {[%clk 0:01:38]}  Qxc8 {[%clk 0:00:16]} 31. Re7 {[%clk 0:01:39]}  b6 {[%clk 0:00:15]} 32. Rxf7 {[%clk 0:01:37]}  Re8 {[%clk 0:00:13]} 33. Kg2 {[%clk 0:01:12]}  Qc4 {[%clk 0:00:12]} 34. Rf8+ {[%clk 0:01:07]}  Rxf8 {[%clk 0:00:12]} 35. Qxf8+ {[%clk 0:01:04]}  Kh7 {[%clk 0:00:12]} 36. Qf5+ {[%clk 0:01:05]}  Kh8 {[%clk 0:00:12]} 37. h4 {[%clk 0:01:05]}  Qe2 {[%clk 0:00:12]} 38. Qc8+ {[%clk 0:01:00]}  Kh7 {[%clk 0:00:10]} 39. Qc6 {[%clk 0:00:57]}  h5 {[%clk 0:00:10]} 40. Kg1 {[%clk 0:00:58]}  Qe1+ {[%clk 0:00:07]} 41. Kg2 {[%clk 0:00:54]}  g6 {[%clk 0:00:07]} 42. Qxb6 {[%clk 0:00:54]}  Qe4+ {[%clk 0:00:06]} 43. Kh2 {[%clk 0:00:46]}  Qf3 {[%clk 0:00:06]} 44. Qe3 {[%clk 0:00:46]}  Qb7 {[%clk 0:00:06]} 45. b6 {[%clk 0:00:46]} 1-0


[Site "https://www.chess.com"]

[Event "Titled Tuesday Blitz January 10 Late 2023"]
[White "Paszewski, Mateusz"]
[Black "Figorito, Nick"]
[WhiteFideId "1141058"]
[BlackFideId "30923689"]
[WhiteElo "2279"]
[BlackElo "2036"]
[Result "1-0"]
[Round "03"]
[TimeControl "180+2"]
[Date "2023.01.10"]
[WhiteClock "0:00:14"]
[BlackClock "0:00:05"]

1. d4 {[%clk 0:00:00]}  Nf6 {[%clk 0:00:00]} 2. Bf4 {[%clk 0:03:00]}  g6 {[%clk 0:02:59]} 3. Nc3 {[%clk 0:03:00]}  d5 {[%clk 0:03:00]} 4. e3 {[%clk 0:02:59]}  Bg7 {[%clk 0:02:59]} 5. h4 {[%clk 0:02:59]}  c5 {[%clk 0:02:59]} 6. Nf3 {[%clk 0:02:59]}  Bg4 {[%clk 0:02:59]} 7. Be2 {[%clk 0:02:57]}  O-O {[%clk 0:02:55]} 8. Ne5 {[%clk 0:02:53]}  Bxe2 {[%clk 0:02:55]} 9. Qxe2 {[%clk 0:02:52]}  cxd4 {[%clk 0:02:54]} 10. exd4 {[%clk 0:02:52]}  Nc6 {[%clk 0:02:54]} 11. O-O-O {[%clk 0:02:53]}  Qb6 {[%clk 0:02:55]} 12. Qd2 {[%clk 0:02:52]}  Rfd8 {[%clk 0:02:30]} 13. h5 {[%clk 0:02:37]}  Ne4 {[%clk 0:02:18]} 14. Nxe4 {[%clk 0:02:21]}  dxe4 {[%clk 0:01:56]} 15. Nxc6 {[%clk 0:02:03]}  bxc6 {[%clk 0:01:54]} 16. hxg6 {[%clk 0:02:02]}  Rxd4 {[%clk 0:01:53]} 17. gxf7+ {[%clk 0:01:57]}  Kxf7 {[%clk 0:01:38]} 18. Qe2 {[%clk 0:01:19]}  Qxb2+ {[%clk 0:01:32]} 19. Kxb2 {[%clk 0:01:18]}  Rd2+ {[%clk 0:00:55]} 20. Kc1 {[%clk 0:01:14]}  Rxe2 {[%clk 0:00:56]} 21. Be3 {[%clk 0:01:10]}  Rb8 {[%clk 0:00:56]} 22. Rxh7 {[%clk 0:01:10]}  Kg6 {[%clk 0:00:51]} 23. Rdh1 {[%clk 0:01:07]}  Bc3 {[%clk 0:00:39]} 24. Rxe7 {[%clk 0:01:05]}  Rb2 {[%clk 0:00:13]} 25. Rh6+ {[%clk 0:00:57]}  Kf5 {[%clk 0:00:10]} 26. Rf7+ {[%clk 0:00:49]}  Ke5 {[%clk 0:00:10]} 27. Bf4+ {[%clk 0:00:48]}  Kd5 {[%clk 0:00:08]} 28. Rd7+ {[%clk 0:00:48]}  Kc4 {[%clk 0:00:07]} 29. Rxc6+ {[%clk 0:00:48]}  Kb5 {[%clk 0:00:07]} 30. Rxc3 {[%clk 0:00:47]}  Rxa2 {[%clk 0:00:07]} 31. Rb3+ {[%clk 0:00:45]}  Kc6 {[%clk 0:00:08]} 32. Rd6+ {[%clk 0:00:38]}  Kc5 {[%clk 0:00:07]} 33. Kb1 {[%clk 0:00:32]}  Ra4 {[%clk 0:00:07]} 34. Rd1 {[%clk 0:00:17]}  Rxf2 {[%clk 0:00:07]} 35. Be3+ {[%clk 0:00:13]}  Kc4 {[%clk 0:00:06]} 36. Bxf2 {[%clk 0:00:13]}  Ra6 {[%clk 0:00:06]} 37. Rd4+ {[%clk 0:00:14]}  Kc5 {[%clk 0:00:05]} 38. Ra4+ {[%clk 0:00:14]} 1-0


[Site "https://www.chess.com"]

[Event "Titled Tuesday Blitz January 10 Late 2023"]
[White "Sargsyan, Anna M."]
[Black "Fernandez Siles, Luis"]
[WhiteFideId "13308130"]
[BlackFideId "2209420"]
[WhiteElo "2375"]
[BlackElo "2218"]
[Result "1-0"]
[Round "03"]
[TimeControl "180+2"]
[Date "2023.01.10"]
[WhiteClock "0:00:48"]
[BlackClock "0:00:20"]

1. d4 {[%clk 0:00:00]}  Nf6 {[%clk 0:00:00]} 2. c4 {[%clk 0:02:48]}  g6 {[%clk 0:02:58]} 3. g3 {[%clk 0:02:47]}  Bg7 {[%clk 0:02:59]} 4. Bg2 {[%clk 0:02:46]}  O-O {[%clk 0:02:59]} 5. Nc3 {[%clk 0:02:47]}  d6 {[%clk 0:02:59]} 6. Nf3 {[%clk 0:02:47]}  c6 {[%clk 0:02:59]} 7. O-O {[%clk 0:02:48]}  Qa5 {[%clk 0:02:59]} 8. e4 {[%clk 0:02:49]}  e5 {[%clk 0:02:59]} 9. Re1 {[%clk 0:02:47]}  Bg4 {[%clk 0:02:59]} 10. Be3 {[%clk 0:02:45]}  Qb4 {[%clk 0:02:56]} 11. Qb3 {[%clk 0:02:44]}  Qxb3 {[%clk 0:02:42]} 12. axb3 {[%clk 0:02:42]}  Bxf3 {[%clk 0:02:36]} 13. Bxf3 {[%clk 0:02:43]}  a6 {[%clk 0:02:30]} 14. dxe5 {[%clk 0:02:44]}  dxe5 {[%clk 0:02:09]} 15. b4 {[%clk 0:02:41]}  Nbd7 {[%clk 0:02:07]} 16. Red1 {[%clk 0:02:29]}  Rfd8 {[%clk 0:02:02]} 17. Be2 {[%clk 0:02:26]}  Nf8 {[%clk 0:01:53]} 18. Rxd8 {[%clk 0:02:21]}  Rxd8 {[%clk 0:01:49]} 19. b5 {[%clk 0:02:16]}  axb5 {[%clk 0:01:49]} 20. cxb5 {[%clk 0:02:17]}  cxb5 {[%clk 0:01:42]} 21. Bxb5 {[%clk 0:02:16]}  Ne6 {[%clk 0:01:35]} 22. Ra7 {[%clk 0:02:16]}  Rb8 {[%clk 0:01:33]} 23. Bc4 {[%clk 0:02:14]}  Nd4 {[%clk 0:01:14]} 24. Kg2 {[%clk 0:01:57]}  Nd7 {[%clk 0:01:11]} 25. Nb5 {[%clk 0:01:46]}  Nc6 {[%clk 0:00:55]} 26. Ra1 {[%clk 0:01:33]}  Bf8 {[%clk 0:00:50]} 27. Rd1 {[%clk 0:01:29]}  Rd8 {[%clk 0:00:50]} 28. Bg5 {[%clk 0:01:25]}  Be7 {[%clk 0:00:41]} 29. Bxe7 {[%clk 0:01:03]}  Nxe7 {[%clk 0:00:35]} 30. Nd6 {[%clk 0:00:58]}  Nb6 {[%clk 0:00:36]} 31. Bxf7+ {[%clk 0:00:58]}  Kg7 {[%clk 0:00:28]} 32. Bb3 {[%clk 0:00:58]}  Nec8 {[%clk 0:00:27]} 33. Nf5+ {[%clk 0:00:58]}  gxf5 {[%clk 0:00:27]} 34. Rxd8 {[%clk 0:00:57]}  fxe4 {[%clk 0:00:24]} 35. Bc2 {[%clk 0:00:58]}  Ne7 {[%clk 0:00:24]} 36. Bxe4 {[%clk 0:00:58]}  Nc6 {[%clk 0:00:21]} 37. Bxc6 {[%clk 0:00:57]}  bxc6 {[%clk 0:00:22]} 38. Rd6 {[%clk 0:00:56]}  Nc4 {[%clk 0:00:22]} 39. Rxc6 {[%clk 0:00:57]}  Nxb2 {[%clk 0:00:22]} 40. Re6 {[%clk 0:00:57]}  Nd3 {[%clk 0:00:22]} 41. Kf3 {[%clk 0:00:56]}  Kf7 {[%clk 0:00:22]} 42. Rd6 {[%clk 0:00:54]}  Nc5 {[%clk 0:00:20]} 43. Rd5 {[%clk 0:00:51]}  e4+ {[%clk 0:00:19]} 44. Ke3 {[%clk 0:00:48]}  Na4 {[%clk 0:00:20]} 45. Kxe4 {[%clk 0:00:48]} 1-0


[Site "https://www.chess.com"]

[Event "Titled Tuesday Blitz January 10 Late 2023"]
[White "Suder, Jakub"]
[Black "Skaric, Djuro"]
[WhiteFideId "1195310"]
[BlackFideId "934569"]
[WhiteElo "2244"]
[BlackElo "2334"]
[Result "1-0"]
[Round "03"]
[TimeControl "180+2"]
[Date "2023.01.10"]
[WhiteClock "0:00:48"]
[BlackClock "0:01:21"]

1. d4 {[%clk 0:00:00]}  d6 {[%clk 0:00:00]} 2. Nf3 {[%clk 0:03:00]}  g6 {[%clk 0:02:59]} 3. c4 {[%clk 0:03:00]}  Bg7 {[%clk 0:03:00]} 4. Nc3 {[%clk 0:02:58]}  Nf6 {[%clk 0:03:00]} 5. e4 {[%clk 0:02:58]}  O-O {[%clk 0:03:01]} 6. Be2 {[%clk 0:02:58]}  Nc6 {[%clk 0:03:01]} 7. O-O {[%clk 0:02:59]}  e5 {[%clk 0:03:01]} 8. d5 {[%clk 0:03:00]}  Ne7 {[%clk 0:03:01]} 9. Ne1 {[%clk 0:03:00]}  h6 {[%clk 0:03:01]} 10. Be3 {[%clk 0:03:01]}  Ne8 {[%clk 0:03:01]} 11. c5 {[%clk 0:03:00]}  f5 {[%clk 0:03:01]} 12. f3 {[%clk 0:02:59]}  f4 {[%clk 0:03:01]} 13. Bf2 {[%clk 0:03:00]}  g5 {[%clk 0:03:01]} 14. a4 {[%clk 0:03:01]}  Rf7 {[%clk 0:03:02]} 15. a5 {[%clk 0:02:59]}  Bf8 {[%clk 0:03:00]} 16. a6 {[%clk 0:03:00]}  b6 {[%clk 0:02:55]} 17. cxd6 {[%clk 0:02:59]}  cxd6 {[%clk 0:02:55]} 18. Bb5 {[%clk 0:03:00]}  Bd7 {[%clk 0:02:51]} 19. Bxd7 {[%clk 0:02:51]}  Qxd7 {[%clk 0:02:47]} 20. Nd3 {[%clk 0:02:51]}  h5 {[%clk 0:02:47]} 21. Kh1 {[%clk 0:02:48]}  Ng6 {[%clk 0:02:46]} 22. Bg1 {[%clk 0:02:48]}  Rg7 {[%clk 0:02:46]} 23. Qb3 {[%clk 0:02:47]}  Nh8 {[%clk 0:02:46]} 24. Qb5 {[%clk 0:02:45]}  Qf7 {[%clk 0:02:45]} 25. Nb4 {[%clk 0:02:45]}  g4 {[%clk 0:02:40]} 26. Nc6 {[%clk 0:02:44]}  g3 {[%clk 0:02:37]} 27. h3 {[%clk 0:02:43]}  Qf6 {[%clk 0:02:26]} 28. Qe2 {[%clk 0:02:42]}  Nf7 {[%clk 0:02:25]} 29. Rfc1 {[%clk 0:02:34]}  Qh4 {[%clk 0:02:24]} 30. Qf1 {[%clk 0:02:31]}  Ng5 {[%clk 0:02:23]} 31. Rc2 {[%clk 0:02:30]}  Nf6 {[%clk 0:02:20]} 32. Re1 {[%clk 0:02:30]}  Nfh7 {[%clk 0:02:17]} 33. Nb5 {[%clk 0:02:24]}  Nxh3 {[%clk 0:02:17]} 34. gxh3 {[%clk 0:02:01]}  Ng5 {[%clk 0:02:15]} 35. Rg2 {[%clk 0:01:59]}  Nxh3 {[%clk 0:02:14]} 36. Bh2 {[%clk 0:01:47]}  Nf2+ {[%clk 0:02:02]} 37. Rxf2 {[%clk 0:01:43]}  gxf2 {[%clk 0:01:56]} 38. Re2 {[%clk 0:01:41]}  Rg3 {[%clk 0:01:55]} 39. Rxf2 {[%clk 0:01:41]}  Qg5 {[%clk 0:01:48]} 40. Nc7 {[%clk 0:01:34]}  Rc8 {[%clk 0:01:32]} 41. Ne6 {[%clk 0:01:30]}  Qg6 {[%clk 0:01:27]} 42. Rg2 {[%clk 0:01:29]}  h4 {[%clk 0:01:24]} 43. Bxg3 {[%clk 0:01:28]}  fxg3 {[%clk 0:01:24]} 44. Rg1 {[%clk 0:01:12]}  Bh6 {[%clk 0:01:23]} 45. Ne7+ {[%clk 0:00:51]}  Kf7 {[%clk 0:01:21]} 46. Nxg6 {[%clk 0:00:49]}  Kxg6 {[%clk 0:01:21]} 47. Qh3 {[%clk 0:00:48]} 1-0


[Site "https://www.chess.com"]

[Event "Titled Tuesday Blitz January 10 Late 2023"]
[White "Rosenberg, Evan S"]
[Black "Bayo Milagro, Alvaro"]
[WhiteFideId "2019299"]
[BlackFideId "22275240"]
[WhiteElo "1956"]
[BlackElo "2287"]
[Result "0-1"]
[Round "03"]
[TimeControl "180+2"]
[Date "2023.01.10"]
[WhiteClock "0:01:20"]
[BlackClock "0:01:39"]

1. d4 {[%clk 0:00:00]}  Nf6 {[%clk 0:00:00]} 2. Nf3 {[%clk 0:02:59]}  e6 {[%clk 0:02:58]} 3. g3 {[%clk 0:02:58]}  b5 {[%clk 0:02:58]} 4. Bg2 {[%clk 0:02:57]}  Bb7 {[%clk 0:02:56]} 5. O-O {[%clk 0:02:56]}  d5 {[%clk 0:02:56]} 6. a4 {[%clk 0:02:55]}  b4 {[%clk 0:02:55]} 7. c4 {[%clk 0:02:53]}  dxc4 {[%clk 0:02:55]} 8. Nbd2 {[%clk 0:02:52]}  c3 {[%clk 0:02:54]} 9. bxc3 {[%clk 0:02:44]}  bxc3 {[%clk 0:02:29]} 10. Nc4 {[%clk 0:02:32]}  Be7 {[%clk 0:02:30]} 11. Rb1 {[%clk 0:02:32]}  Be4 {[%clk 0:02:14]} 12. Rb3 {[%clk 0:02:17]}  c2 {[%clk 0:02:08]} 13. Qd2 {[%clk 0:02:02]}  O-O {[%clk 0:02:07]} 14. Ne1 {[%clk 0:02:01]}  Bxg2 {[%clk 0:02:04]} 15. Kxg2 {[%clk 0:01:50]}  Nc6 {[%clk 0:01:57]} 16. Nxc2 {[%clk 0:01:50]}  Qd5+ {[%clk 0:01:57]} 17. f3 {[%clk 0:01:48]}  Qxc4 {[%clk 0:01:54]} 18. Rc3 {[%clk 0:01:32]}  Qxa4 {[%clk 0:01:54]} 19. e4 {[%clk 0:01:32]}  Rfd8 {[%clk 0:01:46]} 20. g4 {[%clk 0:01:32]}  Nxd4 {[%clk 0:01:39]} 21. Rd3 {[%clk 0:01:20]} 0-1


[Site "https://www.chess.com"]

[Event "Titled Tuesday Blitz January 10 Late 2023"]
[White "Aggelis, Nikolaos"]
[Black "Rodriguez Santiago, Jaime"]
[WhiteFideId "4213220"]
[BlackFideId "3100898"]
[WhiteElo "2270"]
[BlackElo "2026"]
[Result "1-0"]
[Round "03"]
[TimeControl "180+2"]
[Date "2023.01.10"]
[WhiteClock "0:02:24"]
[BlackClock "0:01:45"]

1. Nf3 {[%clk 0:00:00]}  Nf6 {[%clk 0:00:00]} 2. g3 {[%clk 0:02:59]}  g6 {[%clk 0:02:59]} 3. Bg2 {[%clk 0:03:00]}  d5 {[%clk 0:02:58]} 4. O-O {[%clk 0:03:00]}  Bg7 {[%clk 0:02:58]} 5. c4 {[%clk 0:03:01]}  c6 {[%clk 0:02:58]} 6. Qa4 {[%clk 0:03:00]}  O-O {[%clk 0:02:57]} 7. d4 {[%clk 0:02:56]}  dxc4 {[%clk 0:02:56]} 8. Qxc4 {[%clk 0:02:55]}  b5 {[%clk 0:02:53]} 9. Qc2 {[%clk 0:02:54]}  Bb7 {[%clk 0:02:53]} 10. Rd1 {[%clk 0:02:51]}  a6 {[%clk 0:02:53]} 11. Ne5 {[%clk 0:02:48]}  Nd5 {[%clk 0:02:52]} 12. Nc3 {[%clk 0:02:48]}  b4 {[%clk 0:02:52]} 13. Ne4 {[%clk 0:02:46]}  a5 {[%clk 0:02:35]} 14. Nc5 {[%clk 0:02:43]}  Qc7 {[%clk 0:02:24]} 15. e4 {[%clk 0:02:42]}  Nb6 {[%clk 0:02:20]} 16. Bf4 {[%clk 0:02:37]}  Qc8 {[%clk 0:02:15]} 17. Rac1 {[%clk 0:02:37]}  f6 {[%clk 0:02:09]} 18. Qb3+ {[%clk 0:02:34]}  Kh8 {[%clk 0:02:00]} 19. Nf7+ {[%clk 0:02:27]}  Rxf7 {[%clk 0:01:51]} 20. Qxf7 {[%clk 0:02:27]}  e5 {[%clk 0:01:51]} 21. dxe5 {[%clk 0:02:28]}  fxe5 {[%clk 0:01:45]} 22. Ne6 {[%clk 0:02:24]} 1-0


[Site "https://www.chess.com"]

[Event "Titled Tuesday Blitz January 10 Late 2023"]
[White "Przybylski, Wojciech"]
[Black "Tyagi, Kushan"]
[WhiteFideId "1117599"]
[BlackFideId "2040069"]
[WhiteElo "2321"]
[BlackElo "2060"]
[Result "1-0"]
[Round "03"]
[TimeControl "180+2"]
[Date "2023.01.10"]
[WhiteClock "0:00:04"]
[BlackClock "0:00:06"]

1. e4 {[%clk 0:00:00]}  c5 {[%clk 0:00:00]} 2. Nf3 {[%clk 0:03:00]}  e6 {[%clk 0:02:58]} 3. d4 {[%clk 0:03:00]}  cxd4 {[%clk 0:02:58]} 4. Nxd4 {[%clk 0:02:59]}  a6 {[%clk 0:02:59]} 5. Bd3 {[%clk 0:03:00]}  Bc5 {[%clk 0:03:00]} 6. Nb3 {[%clk 0:02:59]}  Be7 {[%clk 0:02:59]} 7. O-O {[%clk 0:02:59]}  d6 {[%clk 0:03:00]} 8. c4 {[%clk 0:02:57]}  Nd7 {[%clk 0:02:59]} 9. Nc3 {[%clk 0:02:53]}  b6 {[%clk 0:02:58]} 10. Be3 {[%clk 0:02:53]}  Bb7 {[%clk 0:02:56]} 11. a4 {[%clk 0:02:52]}  Ngf6 {[%clk 0:02:56]} 12. a5 {[%clk 0:02:52]}  Nc5 {[%clk 0:02:56]} 13. axb6 {[%clk 0:02:51]}  Qxb6 {[%clk 0:02:39]} 14. Na5 {[%clk 0:02:40]}  O-O {[%clk 0:02:39]} 15. e5 {[%clk 0:02:27]}  Nfd7 {[%clk 0:02:00]} 16. Bc2 {[%clk 0:02:01]}  Nxe5 {[%clk 0:01:46]} 17. f4 {[%clk 0:00:58]}  Ng6 {[%clk 0:01:36]} 18. f5 {[%clk 0:00:27]}  exf5 {[%clk 0:01:20]} 19. Bd4 {[%clk 0:00:25]}  f4 {[%clk 0:01:08]} 20. Kh1 {[%clk 0:00:20]}  Rab8 {[%clk 0:00:47]} 21. b4 {[%clk 0:00:11]}  Qxb4 {[%clk 0:00:43]} 22. Nd5 {[%clk 0:00:08]}  Bxd5 {[%clk 0:00:36]} 23. cxd5 {[%clk 0:00:08]}  Qb6 {[%clk 0:00:36]} 24. Nc6 {[%clk 0:00:08]}  Rbe8 {[%clk 0:00:21]} 25. Rb1 {[%clk 0:00:07]}  Qc7 {[%clk 0:00:20]} 26. Nxe7+ {[%clk 0:00:08]}  Qxe7 {[%clk 0:00:20]} 27. Qh5 {[%clk 0:00:06]}  f6 {[%clk 0:00:20]} 28. Bf5 {[%clk 0:00:05]}  Qe2 {[%clk 0:00:15]} 29. Bg4 {[%clk 0:00:04]}  Qe4 {[%clk 0:00:12]} 30. Bxc5 {[%clk 0:00:04]}  dxc5 {[%clk 0:00:11]} 31. d6 {[%clk 0:00:04]}  Qe5 {[%clk 0:00:11]} 32. d7 {[%clk 0:00:04]}  Rd8 {[%clk 0:00:12]} 33. Qh3 {[%clk 0:00:04]}  Qg5 {[%clk 0:00:12]} 34. Be6+ {[%clk 0:00:03]}  Kh8 {[%clk 0:00:12]} 35. Rbd1 {[%clk 0:00:04]}  Ne5 {[%clk 0:00:11]} 36. Rd5 {[%clk 0:00:04]}  f3 {[%clk 0:00:11]} 37. gxf3 {[%clk 0:00:04]}  f5 {[%clk 0:00:11]} 38. f4 {[%clk 0:00:04]}  Qg4 {[%clk 0:00:11]} 39. Qg3 {[%clk 0:00:04]}  Qxg3 {[%clk 0:00:10]} 40. hxg3 {[%clk 0:00:05]}  Ng4 {[%clk 0:00:10]} 41. Rf3 {[%clk 0:00:06]}  g6 {[%clk 0:00:10]} 42. Rxc5 {[%clk 0:00:05]}  Nf6 {[%clk 0:00:08]} 43. Rc7 {[%clk 0:00:05]}  Kg7 {[%clk 0:00:09]} 44. Re3 {[%clk 0:00:05]}  h6 {[%clk 0:00:09]} 45. Kg2 {[%clk 0:00:05]}  g5 {[%clk 0:00:09]} 46. Rd3 {[%clk 0:00:05]}  Ne4 {[%clk 0:00:09]} 47. Kf3 {[%clk 0:00:05]}  Kf6 {[%clk 0:00:09]} 48. Bc4 {[%clk 0:00:05]}  Ke7 {[%clk 0:00:09]} 49. Bxa6 {[%clk 0:00:05]}  Rf6 {[%clk 0:00:08]} 50. Bc8 {[%clk 0:00:04]}  Rd6 {[%clk 0:00:08]} 51. Rxd6 {[%clk 0:00:04]}  Nxd6 {[%clk 0:00:08]} 52. Rc5 {[%clk 0:00:03]}  gxf4 {[%clk 0:00:08]} 53. gxf4 {[%clk 0:00:02]}  Ke6 {[%clk 0:00:08]} 54. Re5+ {[%clk 0:00:02]}  Kf6 {[%clk 0:00:07]} 55. Rd5 {[%clk 0:00:02]}  Ke6 {[%clk 0:00:07]} 56. Rd1 {[%clk 0:00:03]}  Kf6 {[%clk 0:00:07]} 57. Rxd6+ {[%clk 0:00:03]}  Ke7 {[%clk 0:00:07]} 58. Rd5 {[%clk 0:00:03]}  Ke6 {[%clk 0:00:06]} 59. Re5+ {[%clk 0:00:03]}  Kf6 {[%clk 0:00:06]} 60. Re8 {[%clk 0:00:04]} 1-0


[Site "https://www.chess.com"]

[Event "Titled Tuesday Blitz January 10 Late 2023"]
[White "Zampronha, Wladimir Camilo"]
[Black "Koutlas, Nikolaos"]
[WhiteFideId "2103087"]
[BlackFideId "25827138"]
[WhiteElo "2176"]
[BlackElo "2341"]
[Result "1/2-1/2"]
[Round "03"]
[TimeControl "180+2"]
[Date "2023.01.10"]
[WhiteClock "0:00:56"]
[BlackClock "0:00:49"]

1. e4 {[%clk 0:00:00]}  e6 {[%clk 0:00:00]} 2. d4 {[%clk 0:03:00]}  d5 {[%clk 0:02:58]} 3. Nc3 {[%clk 0:03:00]}  Nf6 {[%clk 0:02:59]} 4. e5 {[%clk 0:02:59]}  Nfd7 {[%clk 0:02:58]} 5. f4 {[%clk 0:02:59]}  c5 {[%clk 0:02:58]} 6. Nf3 {[%clk 0:03:00]}  Nc6 {[%clk 0:02:59]} 7. Be3 {[%clk 0:03:00]}  a6 {[%clk 0:02:59]} 8. Qd2 {[%clk 0:03:01]}  Be7 {[%clk 0:02:59]} 9. dxc5 {[%clk 0:02:59]}  Nxc5 {[%clk 0:02:58]} 10. O-O-O {[%clk 0:02:56]}  b5 {[%clk 0:02:58]} 11. Nd4 {[%clk 0:02:56]}  Bd7 {[%clk 0:02:57]} 12. Nxc6 {[%clk 0:02:45]}  Bxc6 {[%clk 0:02:52]} 13. Qf2 {[%clk 0:02:43]}  Na4 {[%clk 0:02:53]} 14. Bd4 {[%clk 0:02:41]}  Qa5 {[%clk 0:02:48]} 15. Kb1 {[%clk 0:02:34]}  Rb8 {[%clk 0:02:30]} 16. f5 {[%clk 0:02:26]}  exf5 {[%clk 0:02:21]} 17. Qxf5 {[%clk 0:02:10]}  O-O {[%clk 0:01:52]} 18. e6 {[%clk 0:02:09]}  f6 {[%clk 0:01:50]} 19. Nxd5 {[%clk 0:01:50]}  Bxd5 {[%clk 0:01:47]} 20. Qxd5 {[%clk 0:01:37]}  Rfd8 {[%clk 0:01:39]} 21. Qh5 {[%clk 0:01:38]}  Qb4 {[%clk 0:01:38]} 22. Bd3 {[%clk 0:01:38]}  g6 {[%clk 0:01:31]} 23. Bxg6 {[%clk 0:01:32]}  hxg6 {[%clk 0:00:52]} 24. Qxg6+ {[%clk 0:01:31]}  Kh8 {[%clk 0:00:53]} 25. Bxf6+ {[%clk 0:01:31]}  Bxf6 {[%clk 0:00:53]} 26. Qxf6+ {[%clk 0:01:29]}  Kh7 {[%clk 0:00:52]} 27. Qf7+ {[%clk 0:01:30]}  Kh6 {[%clk 0:00:53]} 28. Qf6+ {[%clk 0:00:56]}  Kh7 {[%clk 0:00:49]} 29. Qf7+ {[%clk 0:00:56]}  Kh6 {[%clk 0:00:49]} 30. Qf6+ {[%clk 0:00:56]}  Kh7 {[%clk 0:00:49]} 1/2-1/2


[Site "https://www.chess.com"]